fUST/lending_fUST_20260101
["ID","MTS","AMOUNT","RATE_DAILY","PERIOD"]
[400259661,1767234646462,-500.0,0.00022191,2]
[400259662,1767234646472,-500.0,0.00022191,2]
[400259663,1767234646481,-500.0,0.00022191,2]
[400259664,1767234646491,-1154.59,0.00022191,2]
[400259665,1767234646500,-500.0,0.00022191,2]
[400259666,1767234646509,-500.0,0.00022191,2]
[400259667,1767234646519,-500.0,0.00022191,2]
[400259668,1767234646528,-500.0,0.00022191,2]
[400259669,1767234646537,-500.0,0.00022191,2]
[400259670,1767234646546,-500.0,0.00022191,2]
[400259671,1767234646555,-500.0,0.00022191,2]
[400259672,1767234646564,-18891.05032139,0.00022241,2]
[400259673,1767234646573,-595.37131296,0.00022241,2]
[400259674,1767234646582,-168.0,0.00022304,2]
[400259675,1767234646592,-168.0,0.00022394,2]
[400259676,1767234646601,-2639.39,0.00022395,2]
[400259677,1767234646610,-712.4955594,0.00022465,2]
[400259678,1767234646619,-150.35978599,0.00022465,2]
[400259679,1767234646628,-500.0,0.00022465,2]
[400259680,1767234646637,-500.0,0.00022465,2]
[400259681,1767234646753,-1229.78,0.00022465,2]
[400259682,1767234646765,-500.0,0.00022465,2]
[400259683,1767234646775,-500.0,0.00022465,2]
[400259684,1767234646784,-500.0,0.00022465,2]
[400259685,1767234646793,-500.0,0.00022465,2]
[400259686,1767234646802,-500.0,0.00022465,2]
[400259687,1767234646811,-500.0,0.00022465,2]
[400259688,1767234646820,-1885.49,0.00022465,2]
[400259689,1767234646831,-500.0,0.00022465,2]
[400259690,1767234646840,-500.0,0.00022465,2]
[400259691,1767234646849,-500.0,0.00022465,2]
[400259692,1767234646859,-1154.59,0.00022465,2]
[400259693,1767234646869,-500.0,0.00022465,2]
[400259694,1767234646879,-500.0,0.00022465,2]
[400259695,1767234646887,-500.0,0.00022465,2]
[400259696,1767234646893,-500.0,0.00022465,2]
[400259697,1767234646900,-500.0,0.00022465,2]
[400259698,1767234646907,-564.17594341,0.00022465,2]
[400259699,1767234646914,-500.0,0.00022465,2]
[400259700,1767234646923,-200.2,0.00022617,2]
[400259701,1767234646932,-168.0,0.00022657,2]
[400259702,1767234646942,-168.0,0.00022721,2]
[400259703,1767234646951,-500.0,0.00022739,2]
[400259704,1767234646960,-500.0,0.00022739,2]
[400259705,1767234646969,-1229.78,0.00022739,2]
[400259706,1767234646978,-500.0,0.00022739,2]
[400259707,1767234646988,-577.04062364,0.00022739,2]
[400259708,1767234646997,-500.0,0.00022739,2]
[400259709,1767234647006,-500.0,0.00022739,2]
[400259710,1767234647015,-500.0,0.00022739,2]
[400259711,1767234647025,-1885.49,0.00022739,2]
[400259712,1767234647034,-500.0,0.00022739,2]
[400259713,1767234647043,-500.0,0.00022739,2]
[400259714,1767234647052,-1154.59,0.00022739,2]
[400259715,1767234647061,-500.0,0.00022739,2]
[400259716,1767234647070,-500.0,0.00022739,2]
[400259717,1767234647079,-2126.34224665,0.00022739,2]
[400259718,1767234647089,-500.0,0.00022739,2]
[400259719,1767234647098,-500.0,0.00022739,2]
[400259720,1767234647107,-617.40005154,0.00022789,2]
[400259721,1767234647116,-168.0,0.0002287,2]
[400259722,1767234647125,-2552.79957154,0.00022913,2]
[400259723,1767234647134,-168.0,0.00022983,2]
[400259724,1767234647144,-77751.88326055,0.00023,30]
[400259725,1767234647156,-8000.0,0.00023,30]
[400259727,1767234744444,200.0,0.00010096,4]
[400259728,1767234860015,1000.0,0.0001,2]
[400259729,1767234863160,1000.0,0.0001,3]
[400259730,1767234888115,1008.0,0.000118,4]
[400259756,1767234972538,1261.11047914,0.000109,2]
[400259758,1767235032208,225.66464323,0.00010872,2]
[400259762,1767235126213,-300.0,0.00010971,2]
[400259763,1767235126236,-400.39166141,0.00010971,2]
[400259764,1767235126258,-200.20949479,0.00010971,2]
[400259765,1767235126280,-500.76618679,0.00010971,2]
[400259766,1767235126303,-500.0,0.00010971,2]
[400259767,1767235126326,-500.0,0.00010971,2]
[400259768,1767235126348,-500.0,0.00010971,2]
[400259769,1767235126370,-490.97884176,0.00010971,2]
[400259770,1767235126393,-500.0,0.00010971,2]
[400259771,1767235126416,-500.0,0.00010971,2]
[400259772,1767235126577,-500.0,0.00010971,2]
[400259773,1767235126604,-500.0,0.00010971,2]
[400259774,1767235126627,-500.0,0.00010971,2]
[400259775,1767235126649,-500.0,0.00010971,2]
[400259776,1767235126671,-500.0,0.00010971,2]
[400259777,1767235126694,-500.0,0.00010971,2]
[400259778,1767235126715,-500.0,0.00010971,2]
[400259779,1767235126735,-500.0,0.00010971,2]
[400259780,1767235126759,-500.0,0.00010971,2]
[400259781,1767235126779,-439.62968706,0.00010971,2]
[400259782,1767235126800,-500.0,0.00010971,2]
[400259783,1767235126821,-500.0,0.00010971,2]
[400259784,1767235126842,-500.0,0.00010971,2]
[400259785,1767235126863,-500.0,0.00010971,2]
[400259786,1767235126884,-500.0,0.00010971,2]
[400259787,1767235126906,-500.0,0.00010971,2]
[400259788,1767235126928,-500.0,0.00010971,2]
[400259789,1767235126949,-500.0,0.00010971,2]
[400259790,1767235126970,-500.0,0.00010971,2]
[400259791,1767235126991,-500.0,0.00010971,2]
[400259792,1767235127014,-500.0,0.00010971,2]
[400259793,1767235127035,-500.0,0.00010971,2]
[400259794,1767235127058,-500.0,0.00010971,2]
[400259795,1767235127079,-500.0,0.00010971,2]
[400259796,1767235127100,-500.0,0.00010971,2]
[400259797,1767235127120,-500.0,0.00010971,2]
[400259798,1767235127141,-500.0,0.00010971,2]
[400259799,1767235127162,-500.0,0.00010971,2]
[400259800,1767235127183,-500.0,0.00010971,2]
[400259801,1767235127204,-500.0,0.00010971,2]
[400259802,1767235127225,-500.0,0.00010971,2]
[400259803,1767235127247,-500.0,0.00010971,2]
[400259804,1767235127269,-500.0,0.00010971,2]
[400259805,1767235127293,-500.0,0.00010971,2]
[400259806,1767235127315,-500.0,0.00010971,2]
[400259807,1767235127337,-500.0,0.00010971,2]
[400259808,1767235127360,-500.0,0.00010971,2]
[400259809,1767235127382,-500.0,0.00010971,2]
[400259810,1767235127405,-500.0,0.00010971,2]
[400259811,1767235127430,-500.0,0.00010971,2]
[400259812,1767235127453,-424.0118962,0.00010971,2]
[400259813,1767235127475,-500.0,0.00010971,2]
[400259814,1767235127497,-500.0,0.00010971,2]
[400259815,1767235127519,-455.66671568,0.00010971,2]
[400259816,1767235127540,-500.0,0.00010971,2]
[400259817,1767235127563,-500.0,0.00010971,2]
[400259818,1767235127584,-500.0,0.00010971,2]
[400259819,1767235127609,-500.0,0.00010971,2]
[400259820,1767235127630,-500.0,0.00010971,2]
[400259821,1767235127653,-500.0,0.00010971,2]
[400259822,1767235127678,-500.0,0.00010971,2]
[400259823,1767235127703,-500.0,0.00010971,2]
[400259824,1767235127724,-500.0,0.00010971,2]
[400259825,1767235127746,-275.53626727,0.00010971,2]
[400259826,1767235127769,-500.0,0.00010971,2]
[400259827,1767235127791,-500.0,0.00010971,2]
[400259828,1767235127813,-500.0,0.00010971,2]
[400259829,1767235127835,-500.0,0.00010971,2]
[400259830,1767235127856,-500.0,0.00010971,2]
[400259831,1767235127878,-500.0,0.00010971,2]
[400259832,1767235127898,-168.1970519,0.00010972,2]
[400259833,1767235127919,-180.0,0.00010972,2]
[400259834,1767235127939,-300.0,0.00010972,2]
[400259835,1767235127959,-50000.0,0.00010972,2]
[400259836,1767235127979,-500.0,0.00010973,2]
[400259837,1767235128000,-500.0,0.00010974,2]
[400259838,1767235128020,-183.30253918,0.00010974,2]
[400259839,1767235128043,-500.0,0.00010974,2]
[400259840,1767235128064,-637.86350529,0.00010974,2]
[400259841,1767235128085,-500.0,0.00010974,2]
[400259842,1767235128106,-500.0,0.00010974,2]
[400259843,1767235128127,-500.0,0.00010974,2]
[400259844,1767235128148,-500.0,0.00010974,2]
[400259845,1767235128170,-500.0,0.00010974,2]
[400259846,1767235128191,-500.0,0.00010974,2]
[400259847,1767235128212,-500.0,0.00010974,2]
[400259848,1767235128234,-500.0,0.00010974,2]
[400259849,1767235128255,-500.0,0.00010974,2]
[400259851,1767235128276,-500.0,0.00010974,2]
[400259852,1767235128298,-410.57754649,0.00010974,2]
[400259853,1767235128325,-271392.86860618,0.00010975,2]
[400259856,1767235302896,154.394,0.00010755,2]
[400259857,1767235312634,1008.88838332,0.00010875,2]
[400259858,1767235548146,-300.0,0.00010973,2]
[400259859,1767235548166,-37.44844908,0.00010974,2]
[400259860,1767235627105,-9380.51827645,0.00010973,2]
[400259861,1767235650124,-243.04797902,0.00010973,2]
[400259862,1767235652817,807.11070664,0.00010875,2]
[400259863,1767235754871,569144.48060526,0.00010875,2]
[400259864,1767235755081,-53000.924196,0.00010875,2]
[400259865,1767235755103,-9850.67741806,0.00010973,2]
[400259866,1767235755123,-164.83311086,0.00010973,2]
[400259867,1767235755144,-462.55155092,0.00010974,2]
[400259868,1767235755321,-602.66798847,0.00010974,2]
[400259869,1767235755345,-419.5040297,0.00010974,2]
[400259870,1767235755367,-548.84774301,0.00010974,2]
[400259871,1767235755388,-500.0,0.00010974,2]
[400259872,1767235755408,-500.0,0.00010974,2]
[400259873,1767235755430,-500.0,0.00010974,2]
[400259874,1767235755450,-500.0,0.00010974,2]
[400259875,1767235755470,-500.0,0.00010974,2]
[400259876,1767235755489,-190.43991557,0.00010974,2]
[400259877,1767235755510,-500.0,0.00010974,2]
[400259878,1767235755531,-473.23324039,0.00010974,2]
[400259879,1767235755552,-163.69258226,0.00010974,2]
[400259880,1767235755574,-500.0,0.00010974,2]
[400259881,1767235755595,-500.0,0.00010974,2]
[400259882,1767235755618,-394.85906522,0.00010974,2]
[400259883,1767235755640,-500.0,0.00010974,2]
[400259884,1767235755663,-500.0,0.00010974,2]
[400259885,1767235755684,-500.0,0.00010974,2]
[400259886,1767235755705,-500.0,0.00010974,2]
[400259887,1767235755725,-500.0,0.00010974,2]
[400259888,1767235755745,-500.0,0.00010974,2]
[400259889,1767235755767,-637.40428255,0.00010974,2]
[400259890,1767235755788,-500.0,0.00010974,2]
[400259891,1767235755809,-500.0,0.00010974,2]
[400259892,1767235755830,-574.0,0.00010975,2]
[400259893,1767235755850,-151.0,0.00011,2]
[400259894,1767235758104,-173.24,0.0001217,2]
[400259895,1767235758126,-194.50307082,0.00012973,2]
[400259896,1767235758145,-500.0,0.00013273,2]
[400259897,1767235758167,-346.48,0.00013276,2]
[400259898,1767235758187,-1682.55469545,0.0001354,2]
[400259899,1767235758207,-1000.0,0.00013699,2]
[400259900,1767235758226,-500.0,0.00013699,2]
[400259901,1767235758245,-500.27689491,0.00013699,2]
[400259902,1767235758264,-558.35111265,0.00013821,2]
[400259903,1767235758284,-307.63591124,0.00014247,2]
[400259904,1767235758305,-519.72,0.00014383,2]
[400259905,1767235758326,-250.0,0.00014668,2]
[400259906,1767235758344,-52998.81271165,0.00014882,2]
[400259941,1767235831875,-160.01,0.00011997,2]
[400259943,1767235831884,-307.64085825,0.00013087,2]
[400259945,1767235831895,-12.37914175,0.00013087,2]
[400259947,1767235831905,-942.76509,0.00013699,2]
[400259949,1767235831914,-100.11555172,0.00014178,2]
[400259951,1767235831925,-272.34984324,0.00014178,2]
[400259953,1767235831936,-107.56460504,0.00014178,2]
[400259954,1767235831945,-767.03176708,0.00014882,2]
[400259996,1767235837924,-46234.15552127,0.00014882,2]
[400259997,1767235837933,-224.17303077,0.00014973,2]
[400259998,1767235837943,-807.11070663,0.00014981,2]
[400259999,1767235837952,-171.4099037,0.00015068,2]
[400260000,1767235837962,-640.04,0.00015268,2]
[400260001,1767235837972,-252.31101984,0.00015363,2]
[400260002,1767235837982,-317.0,0.000159,2]
[400260003,1767235837992,-800.05,0.00016359,2]
[400260004,1767235838002,-253.84299073,0.00016973,2]
[400260005,1767235838012,-960.07,0.0001745,2]
[400260006,1767235838021,-1041.66666667,0.00018244,2]
[400260007,1767235838031,-1120.08,0.0001854,2]
[400260008,1767235838040,-283.51295068,0.00018973,2]
[400260009,1767235838050,-210.53989614,0.00019085,2]
[400260010,1767235838062,-500.0,0.00019085,2]
[400260011,1767235838071,-500.0,0.00019085,2]
[400260012,1767235838081,-500.0,0.00019085,2]
[400260013,1767235838091,-181.92347748,0.00019085,2]
[400260014,1767235838101,-807.11070663,0.00019086,2]
[400260015,1767235838110,-288.48,0.000195,2]
[400260016,1767235838120,-11127.48,0.000195,2]
[400260017,1767235838130,-547.71,0.000195,2]
[400260018,1767235838140,-166.8,0.00019567,2]
[400260019,1767235838150,-30000.0,0.00019604,2]
[400260020,1767235838163,-496.47127164,0.00019604,2]
[400260021,1767235838174,-500.0,0.00019604,2]
[400260022,1767235838184,-500.0,0.00019604,2]
[400260023,1767235838193,-500.0,0.00019604,2]
[400260024,1767235838203,-500.0,0.00019604,2]
[400260025,1767235838213,-500.0,0.00019604,2]
[400260026,1767235838224,-500.0,0.00019604,2]
[400260027,1767235838234,-500.0,0.00019604,2]
[400260028,1767235838244,-500.0,0.00019604,2]
[400260029,1767235838254,-195.71379183,0.00019604,2]
[400260030,1767235838264,-1500.51132373,0.00019604,2]
[400260031,1767235838274,-1280.09,0.00019631,2]
[400260032,1767235838284,-5309.320157,0.00019655,2]
[400260033,1767235838294,-2593.0,0.0002,2]
[400260034,1767235838303,-514.84070869,0.00020152,2]
[400260035,1767235838313,-942.76509,0.00020187,2]
[400260036,1767235838323,-533.88981491,0.000207,2]
[400260037,1767235838332,-1440.1,0.00020722,2]
[400260038,1767235838342,-313.18291064,0.00020973,2]
[400260039,1767235838351,-166.8,0.00021188,2]
[400260040,1767235838361,-514.76055467,0.00021248,2]
[400260041,1767235838371,-1600.11,0.00021812,2]
[400260042,1767235838380,-1024.82,0.00021917,2]
[400260043,1767235838390,-500.0,0.00021917,2]
[400260044,1767235838400,-500.0,0.00021917,2]
[400260045,1767235838409,-500.0,0.00021917,2]
[400260046,1767235838419,-1571.24,0.00021917,2]
[400260047,1767235838429,-962.15,0.00021917,2]
[400260048,1767235838438,-500.0,0.00021917,2]
[400260049,1767235838448,-500.0,0.00021917,2]
[400260050,1767235838458,-500.0,0.00021917,2]
[400260051,1767235838467,-500.0,0.00021917,2]
[400260052,1767235838476,-500.0,0.00021917,2]
[400260053,1767235838486,-500.0,0.00021917,2]
[400260054,1767235838495,-500.0,0.00021917,2]
[400260055,1767235838505,-500.0,0.00021917,2]
[400260056,1767235838514,-266.67739661,0.00021917,2]
[400260057,1767235838525,-500.0,0.00021917,2]
[400260058,1767235838535,-500.0,0.00021917,2]
[400260059,1767235838545,-155.24,0.00022181,10]
[400260060,1767235838556,-1024.82,0.00022191,2]
[400260061,1767235838565,-500.0,0.00022191,2]
[400260062,1767235838575,-500.0,0.00022191,2]
[400260063,1767235838586,-500.0,0.00022191,2]
[400260064,1767235838596,-1571.24,0.00022191,2]
[400260065,1767235838606,-962.15,0.00022191,2]
[400260066,1767235838615,-500.0,0.00022191,2]
[400260067,1767235838624,-500.0,0.00022191,2]
[400260068,1767235838634,-500.0,0.00022191,2]
[400260069,1767235838643,-500.0,0.00022191,2]
[400260070,1767235838653,-500.0,0.00022191,2]
[400260071,1767235838662,-500.0,0.00022191,2]
[400260072,1767235838672,-500.0,0.00022191,2]
[400260073,1767235838681,-500.0,0.00022191,2]
[400260074,1767235838695,-500.0,0.00022191,2]
[400260075,1767235838705,-255.0,0.00022356,7]
[400260076,1767235838715,-1024.82,0.00022465,2]
[400260077,1767235838726,-500.0,0.00022465,2]
[400260078,1767235838735,-500.0,0.00022465,2]
[400260079,1767235838745,-500.0,0.00022465,2]
[400260080,1767235838755,-1571.24,0.00022465,2]
[400260081,1767235838764,-962.15,0.00022465,2]
[400260082,1767235838774,-220.04355582,0.00022465,2]
[400260083,1767235838784,-500.0,0.00022465,2]
[400260084,1767235838793,-500.0,0.00022465,2]
[400260085,1767235838803,-500.0,0.00022465,2]
[400260086,1767235838813,-500.0,0.00022465,2]
[400260087,1767235838823,-500.0,0.00022465,2]
[400260088,1767235838833,-500.0,0.00022465,2]
[400260089,1767235838842,-500.0,0.00022465,2]
[400260090,1767235838852,-500.0,0.00022465,2]
[400260091,1767235838862,-168.0,0.00022514,2]
[400260092,1767235838872,-168.0,0.00022573,2]
[400260093,1767235838882,-5000.0,0.00022621,2]
[400260094,1767235838892,-1024.82,0.00022739,2]
[400260095,1767235838902,-500.0,0.00022739,2]
[400260096,1767235838912,-500.0,0.00022739,2]
[400260097,1767235838922,-500.0,0.00022739,2]
[400260098,1767235838931,-1571.24,0.00022739,2]
[400260099,1767235838941,-962.15,0.00022739,2]
[400260100,1767235838950,-500.0,0.00022739,2]
[400260101,1767235838959,-500.0,0.00022739,2]
[400260102,1767235838969,-635.72146994,0.00022739,2]
[400260103,1767235838979,-500.0,0.00022739,2]
[400260104,1767235838988,-500.0,0.00022739,2]
[400260105,1767235838997,-500.0,0.00022739,2]
[400260106,1767235839007,-296.87279152,0.00022739,2]
[400260107,1767235839017,-500.0,0.00022739,2]
[400260108,1767235839027,-500.0,0.00022799,2]
[400260109,1767235839037,-500.0,0.00022799,2]
[400260110,1767235839046,-396.18299778,0.00022799,2]
[400260111,1767235839060,-500.0,0.00022799,2]
[400260112,1767235839069,-500.0,0.00022799,2]
[400260113,1767235839079,-296.50445371,0.00022799,2]
[400260114,1767235839090,-500.0,0.00022799,2]
[400260115,1767235839102,-500.0,0.00022799,2]
[400260116,1767235839112,-1306.96161206,0.000228,2]
[400260117,1767235839126,-68707.53320233,0.000228,2]
[400260118,1767235839136,-166.8,0.0002281,2]
[400260119,1767235839146,-342.8528706,0.00022973,2]
[400260120,1767235839157,-7505.97333865,0.00023,30]
[400260121,1767235839167,-2126.34224665,0.00023013,2]
[400260122,1767235839315,-1024.82,0.00023013,2]
[400260123,1767235839325,-500.0,0.00023013,2]
[400260124,1767235839335,-500.0,0.00023013,2]
[400260125,1767235839344,-500.0,0.00023013,2]
[400260126,1767235839354,-1571.24,0.00023013,2]
[400260127,1767235839363,-962.15,0.00023013,2]
[400260128,1767235839373,-500.0,0.00023013,2]
[400260129,1767235839383,-434.35390827,0.00023013,2]
[400260130,1767235839395,-65.64609173,0.00023013,2]
[400260131,1767235839404,-500.0,0.00023013,2]
[400260132,1767235839413,-500.0,0.00023013,2]
[400260133,1767235839423,-500.0,0.00023013,2]
[400260134,1767235839433,-500.0,0.00023013,2]
[400260135,1767235839442,-168.0,0.00023023,2]
[400260136,1767235839451,-547.71,0.000231,14]
[400260137,1767235839461,-807.11070663,0.00023192,2]
[400260138,1767235839471,-168.0,0.00023212,2]
[400260139,1767235839480,-2126.34224665,0.00023287,2]
[400260140,1767235839489,-1024.82,0.00023287,2]
[400260141,1767235839499,-500.0,0.00023287,2]
[400260142,1767235839508,-500.0,0.00023287,2]
[400260143,1767235839518,-500.0,0.00023287,2]
[400260144,1767235839528,-1571.24,0.00023287,2]
[400260145,1767235839538,-962.15,0.00023287,2]
[400260146,1767235839547,-500.0,0.00023287,2]
[400260147,1767235839556,-500.0,0.00023287,2]
[400260148,1767235839565,-500.0,0.00023287,2]
[400260149,1767235839575,-500.0,0.00023287,2]
[400260150,1767235839585,-500.0,0.00023287,2]
[400260151,1767235839594,-500.0,0.00023287,2]
[400260152,1767235839603,-316.69535584,0.000233,2]
[400260153,1767235839615,-1027.0,0.000233,2]
[400260154,1767235839626,-9783.78464416,0.000233,2]
[400260155,1767235839636,-1000.0,0.00023333,5]
[400260156,1767235839645,-168.0,0.0002337,2]
[400260157,1767235839654,-168.0,0.00023426,2]
[400260158,1767235839663,-160.0,0.00023436,3]
[400260159,1767235839672,-168.0,0.00023481,2]
[400260160,1767235839682,-168.0,0.00023492,2]
[400260161,1767235839691,-1024.82,0.00023561,2]
[400260162,1767235839700,-500.0,0.00023561,2]
[400260163,1767235839709,-500.0,0.00023561,2]
[400260164,1767235839719,-500.0,0.00023561,2]
[400260165,1767235839729,-1571.24,0.00023561,2]
[400260166,1767235839738,-962.15,0.00023561,2]
[400260167,1767235839748,-500.0,0.00023561,2]
[400260169,1767235839757,-500.0,0.00023561,2]
[400260171,1767235839766,-500.0,0.00023561,2]
[400260172,1767235839775,-500.0,0.00023561,2]
[400260173,1767235839784,-500.0,0.00023561,2]
[400260174,1767235839794,-500.0,0.00023561,2]
[400260175,1767235839803,-168.0,0.00023766,2]
[400260176,1767235839812,-168.0,0.00023769,2]
[400260177,1767235839821,-1024.82,0.00023835,2]
[400260178,1767235839831,-568.66332417,0.00023835,2]
[400260179,1767235839840,-500.0,0.00023835,2]
[400260180,1767235839849,-500.0,0.00023835,2]
[400260181,1767235839858,-1571.24,0.00023835,2]
[400260182,1767235839867,-962.15,0.00023835,2]
[400260183,1767235839877,-469.03789258,0.00023835,2]
[400260184,1767235839886,-500.0,0.00023835,2]
[400260185,1767235839895,-500.0,0.00023835,2]
[400260186,1767235839904,-500.0,0.00023835,2]
[400260188,1767235839913,-500.0,0.00023835,2]
[400260190,1767235839922,-500.0,0.00023835,2]
[400260191,1767235839931,-160.0,0.00023989,4]
[400260192,1767235839940,-156.0,0.00024,11]
[400260193,1767235839949,-1024.82,0.00024109,2]
[400260194,1767235839959,-500.0,0.00024109,2]
[400260195,1767235839968,-500.0,0.00024109,2]
[400260196,1767235839977,-1571.24,0.00024109,2]
[400260197,1767235839986,-962.15,0.00024109,2]
[400260198,1767235839995,-500.0,0.00024109,2]
[400260199,1767235840004,-500.0,0.00024109,2]
[400260200,1767235840014,-246.25540048,0.00024109,2]
[400260201,1767235840023,-500.0,0.00024109,2]
[400260202,1767235840033,-168.0,0.00024115,2]
[400260203,1767235840042,-171140.08402738,0.00024142,2]
[400260204,1767235840053,-159.23,0.000242,7]
[400260205,1767235840063,-227.38,0.000242,2]
[400260206,1767235840072,-168.0,0.00024236,2]
[400260207,1767235840081,-1024.82,0.00024383,2]
[400260208,1767235840090,-500.0,0.00024383,2]
[400260209,1767235840100,-500.0,0.00024383,2]
[400260210,1767235840109,-1571.24,0.00024383,2]
[400260211,1767235840118,-962.15,0.00024383,2]
[400260212,1767235840127,-500.0,0.00024383,2]
[400260213,1767235840136,-500.0,0.00024383,2]
[400260214,1767235840146,-500.0,0.00024383,2]
[400260215,1767235840155,-166.8,0.00024431,2]
[400260216,1767235840164,-168.0,0.00024483,2]
[400260217,1767235840174,-160.0,0.00024541,5]
[400260218,1767235840183,-2157.0,0.00024551,2]
[400260219,1767235840192,-628.0,0.00024551,2]
[400260220,1767235840202,-1364.0,0.00024551,2]
[400260221,1767235840211,-416.0,0.00024551,2]
[400260222,1767235840221,-147634.5545045,0.0002465,2]
[400260223,1767235840231,-513.71639582,0.0002465,2]
[400260224,1767235840240,-1024.82,0.00024657,2]
[400260225,1767235840249,-241.73455576,0.00024657,2]
[400260226,1767235840258,-500.0,0.00024657,2]
[400260227,1767235840268,-1571.24,0.00024657,2]
[400260228,1767235840277,-962.15,0.00024657,2]
[400260229,1767235840287,-500.0,0.00024657,2]
[400260230,1767235840296,-500.0,0.00024657,2]
[400260231,1767235840306,-500.0,0.00024657,2]
[400260232,1767235840315,-380.0,0.00024658,2]
[400260233,1767235840324,-16819.15259793,0.00024774,2]
[400260234,1767235840334,-2297.51961444,0.000248,2]
[400260235,1767235840343,-151.0,0.000249,7]
[400260236,1767235840352,-151.0,0.000249,7]
[400260237,1767235840362,-151.0,0.000249,7]
[400260238,1767235840371,-151.0,0.000249,7]
[400260239,1767235840380,-151.0,0.000249,7]
[400260240,1767235840389,-204.365296,0.000249,7]
[400260241,1767235840399,-151.0,0.000249,7]
[400260242,1767235840408,-114488.91664724,0.000249,2]
[400260243,1767235840518,-27.005331,0.000249,2]
[400260261,1767235904477,110632.50413269,0.00010875,2]
[400260262,1767235912204,5000.0,0.000125,3]
[400260263,1767235914257,-1306.47729525,0.00010875,2]
[400260264,1767235918732,-266.87925266,0.00010875,2]
[400260265,1767235920417,-583.0,0.00010875,2]
[400260266,1767235921840,-207.30691018,0.00010875,2]
[400260267,1767235924414,-503.83498449,0.00010875,2]
[400260268,1767235926393,-177.02289171,0.00010875,2]
[400260269,1767235927911,-1218.74160507,0.00010875,2]
[400260270,1767235929380,-169.33706153,0.00010875,2]
[400260271,1767235932782,-237.08053768,0.00010875,2]
[400260272,1767235934231,-200.52,0.00010875,2]
[400260273,1767235936855,-190.95421658,0.00010875,2]
[400260274,1767235940428,-411.36558161,0.00010875,2]
[400260275,1767235941876,-226.5,0.00010875,2]
[400260276,1767235943327,-300.0,0.00010875,2]
[400260277,1767235944841,-190.46,0.00010875,2]
[400260278,1767235948493,-182.82210834,0.00010875,2]
[400260279,1767235950070,-377.68601388,0.00010875,2]
[400260280,1767235982379,300.0,0.00010874,2]
[400260281,1767235987859,500.0,0.00010874,2]
[400260282,1767235988516,202.13494516,0.00010874,2]
[400260283,1767235989508,500.0,0.00010874,2]
[400260284,1767235989867,500.0,0.00010874,2]
[400260285,1767235990265,500.0,0.00010874,2]
[400260286,1767235990635,570.02072891,0.00010874,2]
[400260287,1767235993625,1200.0,0.00010874,2]
[400260288,1767235993764,500.0,0.00010874,2]
[400260289,1767235993793,500.0,0.00010874,2]
[400260290,1767235993822,500.0,0.00010874,2]
[400260291,1767235993859,500.0,0.00010874,2]
[400260292,1767235993889,500.0,0.00010874,2]
[400260293,1767235994048,500.0,0.00010874,2]
[400260294,1767235994083,500.0,0.00010874,2]
[400260295,1767235994115,438.56120663,0.00010874,2]